bitfinex-derivatives/quotes_SOLF0:USTF0_20260118
["timestamp","ask_amount","ask_price","bid_price","bid_amount"]
[1768748559537,14.6164969,141.63,141.57,7.57836886]
[1768748559725,5.38546186,141.62,141.57,7.57836886]
[1768748559925,1.08640293,141.58,141.51,7.4662524]
[1768748560129,1.78693211,141.56,141.48,7.4662524]
[1768748560328,1.09674524,141.53,141.44,7.4662524]
[1768748560529,1.09674524,141.53,141.44,13.8319524]
[1768748560731,1.78693211,141.52,141.45,7.4662524]
[1768748560926,1.09674524,141.53,141.45,7.4662524]
[1768748561127,2.88367735,141.56,141.47,9.30570356]
[1768748561333,1.78693211,141.57,141.5,7.4662524]
[1768748561728,1.09674524,141.59,141.5,9.25318451]
[1768748561938,1.78693211,141.58,141.5,7.4662524]
[1768748562240,1.78693211,141.58,141.53,0.05277478]
[1768748562442,1.09674524,141.59,141.53,0.05277478]
[1768748562635,2.88367735,141.59,141.53,0.05277478]
[1768748562941,1.09674524,141.59,141.53,0.05277478]
[1768748563142,1.78693211,141.61,141.53,7.51902718]
[1768748563342,1.1624146,141.62,141.54,7.4662524]
[1768748563343,2.94934671,141.62,141.54,7.4662524]
[1768748563937,0.04575997,141.59,141.54,9.25318451]
[1768748564134,0.04575997,141.59,141.57,0.05291174]
[1768748565039,1.78693211,141.64,141.57,7.51916414]
[1768748565445,1.18250864,141.65,141.58,1.78693211]
[1768748565941,9.33448574,141.68,141.6,1.78693211]
[1768748566340,9.33448574,141.68,141.6,1.83190268]
[1768748566341,6.56963931,141.67,141.6,1.83190268]
[1768748566540,1.78693211,141.66,141.6,0.04497057]
[1768748567436,2.98838663,141.67,141.6,0.04497057]
[1768748568038,1.21076093,141.66,141.6,0.04497057]
[1768748572046,1.21076093,141.66,141.6,1.83190268]
[1768748572247,1.21076093,141.66,141.6,0.04497057]
[1768748573943,2.99769304,141.66,141.6,0.04497057]
[1768748574247,5.37166264,141.65,141.6,0.04497057]
[1768748574447,1.28086352,141.65,141.6,0.04497057]
[1768748575550,7.63756352,141.65,141.6,0.04497057]
[1768748576549,6.66967537,141.64,141.58,1.78693211]
[1768748576848,1.29760831,141.64,141.58,1.78693211]
[1768748577043,1.29760831,141.64,141.58,9.17375767]
[1768748577244,7.65320831,141.67,141.6,1.78693211]
[1768748577447,5.37290597,141.66,141.6,1.78693211]
[1768748577652,5.37290597,141.65,141.6,1.78693211]
[1768748577947,1.29760831,141.67,141.62,0.0484706]
[1768748578352,6.3549,141.69,141.63,1.78693211]
[1768748578545,5.37512468,141.68,141.63,1.78693211]
[1768748578746,5.37524734,141.67,141.63,1.78693211]
[1768748579046,1.313925,141.68,141.62,1.83540271]
[1768748579545,1.32193531,141.66,141.62,0.0484706]
[1768748580646,1.2814117,141.65,141.59,1.78693211]
[1768748580852,120.0349,141.69,141.57,7.38682556]
[1768748580853,6.65478116,141.64,141.57,1.78693211]
[1768748581149,5.37336946,141.63,141.57,1.78693211]
[1768748581350,1.2814117,141.64,141.57,1.78693211]
[1768748581550,5.37343953,141.63,141.57,1.78693211]
[1768748581751,1.2814117,141.64,141.57,1.78693211]
[1768748581952,5.37282868,141.63,141.57,8.14693211]
[1768748582152,1.28938375,141.67,141.59,1.78693211]
[1768748582340,5.37350926,141.66,141.59,1.78693211]
[1768748582541,5.37350926,141.65,141.59,1.78693211]
[1768748582748,1.28938375,141.67,141.62,0.04536836]
[1768748582947,5.37428095,141.66,141.62,0.04536836]
[1768748583253,7.64528375,141.67,141.62,0.04536836]
[1768748583454,5.37482857,141.66,141.62,0.04536836]
[1768748583748,1.28938375,141.67,141.62,0.04536836]
[1768748583952,5.38336132,141.66,141.62,0.04536836]
[1768748584149,1.28938375,141.67,141.62,0.04536836]
[1768748584348,5.38362999,141.66,141.62,0.04536836]
[1768748584646,268.81959017,141.7,141.63,1.78693211]
[1768748584952,5.3842681,141.69,141.63,9.17375767]
[1768748585252,5.3842681,141.68,141.63,9.17375767]
[1768748585452,267.03265806,141.7,141.63,9.17375767]
[1768748585652,5.38397447,141.69,141.63,9.17375767]
[1768748585852,5.38397447,141.68,141.63,9.17375767]
[1768748586053,267.03265806,141.7,141.63,9.17375767]
[1768748586346,5.38400107,141.69,141.63,9.17375767]
[1768748586552,267.03265806,141.7,141.63,9.17375767]
[1768748586553,5.38400107,141.68,141.63,9.17375767]
[1768748586752,267.03265806,141.7,141.63,9.17375767]
[1768748586954,5.38424314,141.69,141.63,9.17375767]
[1768748587251,119.9989,141.74,141.64,7.38682556]
[1768748587252,7.68088824,141.73,141.64,7.38682556]
[1768748587448,5.38444907,141.72,141.66,1.78693211]
[1768748587653,5.38444907,141.71,141.66,1.78693211]
[1768748587848,5.38444907,141.7,141.66,1.78693211]
[1768748588041,6.3535,141.72,141.66,1.78693211]
[1768748588245,5.38211802,141.71,141.66,1.78693211]
[1768748588447,6.3535,141.72,141.66,1.78693211]
[1768748588650,5.38084366,141.71,141.66,1.78693211]
[1768748588849,6.3535,141.72,141.66,1.78693211]
[1768748589057,5.38080663,141.71,141.66,1.78693211]
[1768748589355,1.32768824,141.73,141.66,1.78693211]
[1768748589550,5.37963529,141.72,141.66,1.78693211]
[1768748589857,1.32768824,141.73,141.66,1.78693211]
[1768748590161,5.37944575,141.72,141.66,1.78693211]
[1768748590361,1.32768824,141.73,141.66,1.78693211]
[1768748590559,5.37738628,141.72,141.67,7.38682556]
[1768748590857,5.37738628,141.72,141.63,98.8887]
[1768748590858,265.7,141.74,141.68,9.21921435]
[1768748591258,0.04535946,141.71,141.68,9.21921435]
[1768748591657,265.7,141.74,141.68,15.57401435]
[1768748591855,1.35671405,141.76,141.68,15.57401435]
[1768748592060,229.12990809,141.77,141.7,9.17375767]
[1768748593059,229.12990809,141.77,141.72,0.0514254]
[1768748594162,275.20654129,141.79,141.72,0.0514254]
[1768748594460,275.20654129,141.79,141.72,1.83835751]
[1768748594762,9.56649823,141.81,141.73,7.38682556]
[1768748594955,1.42996612,141.8,141.73,7.38682556]
[1768748595155,1.78693211,141.79,141.73,7.38682556]
[1768748595462,1.78693211,141.79,141.71,9.17375767]
[1768748595659,1.78693211,141.79,141.75,0.05098808]
[1768748597658,3.21689823,141.8,141.75,0.05098808]
[1768748600260,267.40693211,141.82,141.75,7.43781364]
[1768748600860,265.62,141.82,141.75,9.22134016]
[1768748601862,265.62,141.82,141.75,15.57314016]
[1768748602268,265.62,141.82,141.76,7.38682556]
[1768748606164,3.28072884,141.85,141.77,9.26133288]
[1768748606467,3.28072884,141.85,141.77,7.47780636]
[1768748606873,1.78352652,141.84,141.8,0.04899454]
[1768748608476,1.49720232,141.85,141.8,0.04899454]
[1768748608772,1.78352652,141.84,141.8,0.04899454]
[1768748608972,3.29845418,141.84,141.8,0.04899454]
[1768748609968,1.51492766,141.84,141.8,0.04899454]
[1768748610163,1.78352652,141.83,141.8,0.04899454]
[1768748610782,1.51492766,141.84,141.8,0.04899454]
[1768748610989,1.78352652,141.85,141.8,0.04899454]
[1768748611879,3.31562283,141.86,141.8,0.04899454]
[1768748612681,3.31562283,141.86,141.8,7.5268009]
[1768748613983,1.53209631,141.86,141.8,7.5268009]
[1768748614194,265.5,141.87,141.8,7.5268009]
[1768748614399,267.28352652,141.87,141.8,7.5268009]
[1768748614690,265.5,141.87,141.8,15.65972742]
[1768748614895,1.54313623,141.88,141.81,7.47780636]
[1768748615491,3.33740746,141.87,141.79,9.26133288]
[1768748615893,3.33740746,141.87,141.83,0.05299647]
[1768748616087,1.78352652,141.86,141.83,0.05299647]
[1768748616396,1.55388094,141.87,141.83,0.05299647]
[1768748616694,1.78352652,141.88,141.83,0.05299647]
[1768748616889,1.56876674,141.9,141.83,0.05299647]
[1768748617198,1.78352652,141.89,141.83,0.05299647]
[1768748617895,7.91426674,141.9,141.83,0.05299647]
[1768748618394,1.78352652,141.89,141.83,0.05299647]
[1768748618596,3.35229326,141.9,141.83,7.98768027]
[1768748618990,1.56876674,141.9,141.83,7.98768027]
[1768748619499,3.36745987,141.88,141.83,0.05299647]
[1768748619896,1.78352652,141.86,141.83,0.05299647]
[1768748620893,1.78352652,141.87,141.83,0.05299647]
[1768748622398,1.78352652,141.88,141.83,0.05299647]
[1768748622902,3.38215756,141.87,141.83,0.05299647]
[1768748623402,1.59863104,141.87,141.83,0.05299647]
[1768748625403,265.42,141.91,141.83,0.05299647]
[1768748625404,1.61278838,141.9,141.83,0.05299647]
[1768748625695,1.78352652,141.88,141.83,0.05299647]
[1768748626598,1.61278838,141.9,141.83,0.05299647]
[1768748626797,1.78352652,141.88,141.83,0.05299647]
[1768748627399,1.62196651,141.87,141.83,0.05299647]
[1768748631808,3.42325782,141.86,141.78,14.2850838]
[1768748632004,1.58673483,141.85,141.78,14.2850838]
[1768748632209,7.93443483,141.85,141.78,7.9346838]
[1768748633605,1.78352652,141.84,141.78,7.9346838]
[1768748634501,6.3467,141.87,141.79,8.32131258]
[1768748634709,8.13022652,141.87,141.79,8.32131258]
[1768748634903,9.73099223,141.87,141.79,8.32131258]
[1768748635307,6.97445796,141.86,141.79,8.32131258]
[1768748635508,1.60076571,141.86,141.79,8.32131258]
[1768748635910,1.60076571,141.86,141.79,14.67141258]
[1768748636103,7.94796571,141.86,141.79,14.67141258]
[1768748636903,9.73149223,141.86,141.79,14.67141258]
[1768748638513,9.73149223,141.86,141.8,8.32131258]
[1768748639004,7.94796571,141.86,141.8,8.32131258]
[1768748639210,15.13042247,141.85,141.77,16.4556391]
[1768748639405,5.38156872,141.84,141.77,16.4556391]
[1768748639599,1.62179872,141.84,141.77,8.32131258]
[1768748640110,7.96989872,141.84,141.77,8.32131258]
[1768748640909,7.96989872,141.84,141.77,14.67231258]
[1768748642408,5.38885063,141.83,141.77,14.67231258]
[1768748642715,7.96989872,141.84,141.77,14.67231258]
[1768748642913,5.38885409,141.83,141.77,14.67231258]
[1768748643103,7.96989872,141.84,141.77,16.4558391]
[1768748643311,5.38885409,141.83,141.77,16.4558391]
[1768748643507,7.96989872,141.84,141.77,16.4558391]
[1768748643714,5.38021972,141.83,141.77,16.4558391]
[1768748644016,7.96989872,141.84,141.77,16.4558391]
[1768748644214,5.38021972,141.83,141.77,14.67231258]
[1768748644418,7.96989872,141.84,141.77,14.67231258]
[1768748644611,5.38210577,141.83,141.77,14.67231258]
[1768748644810,7.96989872,141.84,141.77,14.67231258]
[1768748645010,5.38210577,141.83,141.77,14.67231258]
[1768748645215,7.96989872,141.84,141.77,14.67231258]
[1768748645509,5.38329257,141.83,141.77,14.67231258]
[1768748645708,7.96989872,141.84,141.77,14.67231258]
[1768748645910,5.38346015,141.83,141.77,14.67231258]
[1768748646107,7.96989872,141.84,141.77,14.67231258]
[1768748646308,5.38346015,141.83,141.77,14.67231258]
[1768748646516,7.96989872,141.84,141.77,14.67231258]
[1768748646716,5.38452519,141.83,141.77,14.67231258]
[1768748646916,1.62179872,141.84,141.77,14.67231258]
[1768748647220,5.38452519,141.83,141.77,14.67231258]
[1768748647517,1.62179872,141.84,141.77,14.67231258]
[1768748647820,5.38546245,141.83,141.77,14.67231258]
[1768748648009,1.62179872,141.84,141.77,14.67231258]
[1768748648206,5.38550338,141.83,141.78,6.3506]
[1768748648413,1.62179872,141.84,141.78,14.67191258]
[1768748648623,5.386749,141.83,141.78,14.67191258]
[1768748648914,1.62179872,141.84,141.78,14.67191258]
[1768748649119,5.38675983,141.83,141.78,14.67191258]
[1768748649317,1.62179872,141.84,141.78,14.67191258]
[1768748649518,5.3882913,141.83,141.78,14.67191258]
[1768748649816,1.62179872,141.84,141.78,14.67191258]
[1768748650118,5.3882879,141.83,141.78,14.67191258]
[1768748650417,3.44785828,141.86,141.79,8.32131258]
[1768748650617,5.39031394,141.85,141.8,10.1048391]
[1768748650812,5.39031394,141.84,141.8,10.1048391]
[1768748651011,3.44785828,141.88,141.8,10.1048391]
[1768748651214,5.39105052,141.87,141.82,10.1048391]
[1768748651412,5.39105052,141.86,141.82,10.1048391]
[1768748651617,3.45145564,141.88,141.8,10.1048391]
[1768748651817,7.05905617,141.87,141.8,10.1048391]
[1768748652011,5.39112705,141.86,141.8,10.1048391]
[1768748652207,5.39112705,141.85,141.8,10.1048391]
[1768748652407,1.66792912,141.87,141.8,10.1048391]
[1768748652611,5.39116176,141.86,141.8,10.1048391]
[1768748652918,5.43839991,141.85,141.82,0.04805119]
[1768748653122,0.04723815,141.85,141.82,0.04805119]
[1768748655321,5.39192169,141.84,141.82,0.04805119]
[1768748655522,0.04723815,141.85,141.82,0.04805119]
[1768748655723,5.39208533,141.84,141.82,0.04805119]
[1768748655922,0.04723815,141.85,141.82,0.04805119]
[1768748657125,3.46885079,141.89,141.82,8.36936377]
[1768748657422,5.39285043,141.88,141.82,8.36936377]
[1768748657621,5.39285043,141.87,141.82,8.36936377]
[1768748657822,5.39285043,141.86,141.82,8.36936377]
[1768748658119,3.46885079,141.89,141.82,8.36936377]
[1768748658322,5.39288989,141.88,141.82,8.36936377]
[1768748658524,5.39288989,141.87,141.82,8.36936377]
[1768748658716,5.39288989,141.86,141.82,8.36936377]
[1768748658917,5.39256075,141.85,141.82,8.36936377]
[1768748659112,1.73944955,141.88,141.82,8.36936377]
[1768748659325,5.39252095,141.87,141.82,8.36936377]
[1768748659527,5.39252095,141.86,141.82,8.36936377]
[1768748659725,5.39252095,141.85,141.82,8.36936377]
[1768748660021,1.73944955,141.88,141.82,8.36936377]
[1768748660224,5.39278834,141.87,141.82,8.36936377]
[1768748660430,5.39278834,141.86,141.82,10.15289029]
[1768748660724,6.3458,141.89,141.82,10.15289029]
[1768748661622,267.10614559,141.9,141.82,16.50159029]
[1768748661820,1.74614559,141.9,141.83,8.32131258]
[1768748662419,1.75011826,141.93,141.84,1.78352652]
[1768748662619,1.75011826,141.93,141.85,8.00495711]
[1768748662819,8.12832652,141.92,141.85,8.00495711]
[1768748663025,3.53130892,141.92,141.85,8.00495711]
[1768748663922,6.345,141.91,141.85,8.00495711]
[1768748665528,3.53130892,141.92,141.85,8.00495711]
[1768748666418,1.75011826,141.92,141.85,8.00495711]
[1768748667130,9.88810818,141.93,141.86,7.95383411]
[1768748667828,1.78119066,141.92,141.86,7.95383411]
[1768748668030,1.78119066,141.92,141.88,0.04552315]
[1768748668220,8.10691752,141.93,141.88,0.04552315]
[1768748668731,1.78119066,141.92,141.88,0.04552315]
[1768748669030,1.76865534,141.92,141.88,0.04552315]
[1768748669231,3.549846,141.92,141.86,7.95383411]
[1768748669632,9.89758965,141.91,141.83,9.73502477]
[1768748670030,3.55278965,141.91,141.83,9.73502477]
[1768748670632,3.55278965,141.91,141.86,0.04972585]
[1768748672638,5.40613908,141.9,141.86,0.04972585]
[1768748672833,0.04802668,141.9,141.86,0.04972585]
[1768748673034,1.82827795,141.9,141.86,0.04972585]
[1768748674633,8.17367795,141.9,141.86,0.04972585]
[1768748674834,1.78119066,141.87,141.82,7.95383411]
[1768748675231,1.78119066,141.88,141.82,7.95383411]
[1768748676027,1.78593936,141.89,141.82,7.95383411]
[1768748676635,1.78119066,141.9,141.82,7.95383411]
[1768748676934,5.34866452,141.89,141.82,7.95383411]
[1768748677130,1.78119066,141.9,141.83,9.89721256]
[1768748677534,1.78119066,141.9,141.84,8.16759967]
[1768748679438,9.92701622,141.91,141.84,8.16759967]
[1768748679631,5.34916215,141.9,141.84,8.16759967]
[1768748679826,9.92701622,141.91,141.84,8.16759967]
[1768748680027,5.34916222,141.9,141.84,8.16759967]
[1768748680230,9.92701622,141.91,141.84,8.16759967]
[1768748680433,5.34916222,141.9,141.84,8.16759967]
[1768748680636,8.14582556,141.91,141.84,8.16759967]
[1768748680830,5.34914111,141.9,141.84,8.16759967]
[1768748681033,8.14582556,141.91,141.84,8.16759967]
[1768748681234,5.34914111,141.9,141.84,8.16759967]
[1768748681436,9.92701622,141.91,141.84,8.16759967]
[1768748681634,5.34898626,141.9,141.84,8.16759967]
[1768748681834,9.92701622,141.91,141.84,8.16759967]
[1768748682043,5.34886569,141.9,141.84,8.16759967]
[1768748682244,6.3454,141.9,141.84,8.16759967]
[1768748682552,7.12970121,141.89,141.84,0.05157777]
[1768748682750,1.78119066,141.89,141.84,0.05157777]
[1768748683344,1.78119066,141.89,141.84,8.16759967]
[1768748684152,1.78119066,141.91,141.84,8.16759967]
[1768748684351,5.34879738,141.9,141.84,8.16759967]
[1768748684652,1.78119066,141.91,141.84,8.1160219]
[1768748684851,5.34923083,141.9,141.84,8.1160219]
[1768748685047,5.34923083,141.89,141.86,0.04507172]
[1768748685253,8.12609066,141.91,141.86,0.04507172]
[1768748685445,5.35051678,141.9,141.86,0.04507172]
[1768748685642,5.35051678,141.89,141.86,0.04507172]
[1768748685855,3.59956216,141.92,141.86,0.04507172]
[1768748686056,5.35093088,141.91,141.86,0.04507172]
[1768748686353,5.35093088,141.9,141.86,0.04507172]
[1768748686553,5.35093088,141.89,141.86,0.04507172]
[1768748686854,6.3449,141.91,141.86,0.04507172]
[1768748687046,5.351409,141.9,141.86,0.04507172]
[1768748687242,5.351409,141.89,141.86,0.04507172]
[1768748687447,6.3449,141.91,141.86,0.04507172]
[1768748687648,5.35211452,141.9,141.86,0.04507172]
[1768748687953,5.35211452,141.89,141.86,0.04507172]
[1768748688248,8.12609066,141.91,141.86,0.04507172]
[1768748688445,5.35232614,141.9,141.86,0.04507172]
[1768748688643,5.35232614,141.89,141.86,0.04507172]
[1768748688852,9.95629802,141.91,141.86,0.04507172]
[1768748689155,5.35288158,141.9,141.86,0.04507172]
[1768748689355,5.35288158,141.89,141.86,0.04507172]
[1768748689543,7.18617615,141.88,141.82,16.24601256]
[1768748689855,1.83254524,141.88,141.82,8.1160219]
[1768748690555,1.83479819,141.9,141.83,8.1160219]
[1768748690755,5.35581713,141.89,141.83,8.1160219]
[1768748691050,5.35581713,141.88,141.83,8.1160219]
[1768748691244,1.78119066,141.9,141.83,8.1160219]
[1768748691449,5.35733856,141.89,141.83,8.1160219]
[1768748691648,1.78119066,141.9,141.83,8.1160219]
[1768748691853,5.35756363,141.89,141.84,8.1160219]
[1768748692053,3.61598885,141.92,141.84,9.89721256]
[1768748692254,5.35796083,141.91,141.84,9.89721256]
[1768748692449,5.35796083,141.9,141.84,9.89721256]
[1768748692657,5.35796083,141.89,141.84,9.89721256]
[1768748692860,3.61598885,141.92,141.85,7.88642852]
[1768748693059,0.0495436,141.88,141.85,7.88642852]
[1768748693456,0.0495436,141.88,141.87,0.04818467]
[1768748694757,1.78119066,141.91,141.87,0.04818467]
[1768748694954,5.36276632,141.9,141.87,0.04818467]
[1768748695160,5.36276632,141.89,141.87,0.04818467]
[1768748695356,3.62614687,141.91,141.87,0.04818467]
[1768748695560,5.36458676,141.9,141.87,0.04818467]
[1768748695758,5.36458676,141.89,141.87,0.04818467]
[1768748695958,3.62614687,141.91,141.87,0.04818467]
[1768748696259,5.36457991,141.9,141.87,0.04818467]
[1768748696560,5.36457991,141.89,141.87,0.04818467]
[1768748696758,3.62614687,141.91,141.87,0.04818467]
[1768748696953,5.36473069,141.9,141.87,0.04818467]
[1768748697160,5.36473069,141.89,141.87,0.04818467]
[1768748697362,5.36503756,141.88,141.87,0.04818467]
[1768748697555,5.36540361,141.88,141.87,0.04818467]
[1768748698261,3.62614687,141.91,141.87,0.04818467]
[1768748698462,5.36615333,141.9,141.87,0.04818467]
[1768748698658,5.36615333,141.89,141.87,0.04818467]
[1768748698961,1.84495621,141.91,141.87,0.04818467]
[1768748699163,5.3664821,141.9,141.87,0.04818467]
[1768748699363,5.3664821,141.89,141.87,0.04818467]
[1768748699562,1.84495621,141.91,141.87,0.04818467]
[1768748699763,5.36733194,141.9,141.87,0.04818467]
[1768748699964,5.36733194,141.89,141.87,0.04818467]
[1768748700161,1.84495621,141.91,141.87,0.04818467]
[1768748700366,7.22223285,141.9,141.87,0.04818467]
[1768748700561,5.36697005,141.89,141.84,6.3478]
[1768748700767,5.36697005,141.88,141.84,6.3478]
[1768748701067,1.8552628,141.9,141.84,6.3478]
[1768748701263,5.36798923,141.89,141.84,6.3478]
[1768748701455,5.36798923,141.88,141.84,6.3478]
[1768748701659,1.8552628,141.9,141.84,14.23422852]
[1768748701855,5.36932808,141.89,141.84,14.23422852]
[1768748702165,5.36932808,141.88,141.84,14.23422852]
[1768748702367,1.8552628,141.9,141.84,14.23422852]
[1768748702665,5.36883641,141.89,141.84,14.23422852]
[1768748702854,5.36883641,141.88,141.84,14.23422852]
[1768748703059,1.8552628,141.9,141.84,14.23422852]
[1768748703260,1.86125924,141.88,141.82,16.01631918]
[1768748703566,5.3683875,141.87,141.82,14.23512852]
[1768748703766,1.86125924,141.88,141.82,14.23512852]
[1768748703967,0.05205869,141.86,141.84,0.05145577]
[1768748704570,1.86125924,141.88,141.84,0.05145577]
[1768748704764,5.37862428,141.87,141.84,0.05145577]
[1768748704965,1.86125924,141.88,141.84,0.05145577]
[1768748705162,5.37862428,141.87,141.84,0.05145577]
[1768748705363,1.86125924,141.88,141.84,0.05145577]
[1768748705569,5.37957981,141.87,141.84,0.05145577]
[1768748705770,1.86125924,141.88,141.84,0.05145577]
[1768748705970,5.37953312,141.87,141.84,0.05145577]
[1768748706173,5.37924246,141.86,141.84,0.05145577]
[1768748706374,1.86125924,141.88,141.84,0.05145577]
[1768748706576,5.37912217,141.87,141.84,0.05145577]
[1768748706776,5.37912217,141.86,141.84,0.05145577]
[1768748706970,1.86125924,141.88,141.84,0.05145577]
[1768748707172,5.37917777,141.87,141.84,0.05145577]
[1768748707368,7.3030892,141.86,141.8,7.88642852]
[1768748707678,5.37917777,141.85,141.8,7.88642852]
[1768748707876,5.37917777,141.84,141.8,7.88642852]
[1768748708078,1.92391143,141.86,141.8,7.88642852]
[1768748708281,5.37779016,141.85,141.8,7.88642852]
[1768748708572,5.37611716,141.84,141.78,9.66761918]
[1768748708778,5.37561631,141.83,141.81,0.04971313]
[1768748708966,1.82119798,141.85,141.81,0.04971313]
[1768748709174,5.37559993,141.84,141.81,0.04971313]
[1768748709372,1.82119798,141.85,141.81,0.04971313]
[1768748709569,1.82313647,141.87,141.81,7.93614165]
[1768748709768,1.82313647,141.87,141.81,14.28534165]
[1768748711980,1.82313647,141.87,141.82,6.3487]
[1768748712386,1.82876376,141.9,141.82,14.23512852]
[1768748712576,1.82876376,141.89,141.82,14.23512852]
[1768748713281,1.82876376,141.89,141.84,0.05215015]
[1768748716188,9.95595442,141.89,141.84,0.05215015]
[1768748716388,1.83423249,141.88,141.84,0.05215015]
[1768748716583,8.18063249,141.88,141.84,0.05215015]
[1768748716788,8.18063249,141.88,141.81,1.78119066]
[1768748717284,1.83423249,141.88,141.82,7.88642852]
[1768748717485,9.96454139,141.9,141.83,9.66761918]
[1768748719592,1.84117918,141.89,141.83,7.88642852]
[1768748721593,5.34929854,141.88,141.83,7.88642852]
[1768748721790,5.34929854,141.87,141.83,7.88642852]
[1768748721988,1.84117918,141.89,141.83,7.88642852]
[1768748722189,5.34929854,141.88,141.83,7.88642852]
[1768748722395,5.34929854,141.87,141.83,7.88642852]
[1768748722592,1.84117918,141.89,141.83,7.88642852]
[1768748722793,5.34935214,141.88,141.83,7.88642852]
[1768748722990,5.34935214,141.87,141.83,9.66821979]
[1768748723295,1.84117918,141.89,141.83,9.66821979]
[1768748723498,5.34942294,141.88,141.83,9.66821979]
[1768748723790,5.34942294,141.87,141.83,9.66821979]
[1768748723988,1.84117918,141.89,141.83,9.66821979]
[1768748724187,5.34946229,141.88,141.83,9.66821979]
[1768748724389,5.34946229,141.87,141.83,9.66821979]
[1768748724592,1.84117918,141.89,141.83,9.66821979]
[1768748724795,5.34956016,141.88,141.83,9.66821979]
[1768748724995,5.34956016,141.87,141.83,9.66821979]
[1768748725195,1.84117918,141.89,141.83,16.01651979]
[1768748725392,5.34953985,141.88,141.83,16.01651979]
[1768748725592,5.34953985,141.87,141.83,16.01651979]
[1768748725789,1.84117918,141.89,141.83,16.01651979]
[1768748725997,5.34965445,141.88,141.83,16.01651979]
[1768748726196,5.34965445,141.87,141.83,16.01651979]
[1768748726397,1.84117918,141.89,141.83,16.01651979]
[1768748726594,5.34927769,141.88,141.83,16.01651979]
[1768748726797,5.34927769,141.87,141.83,16.01651979]
[1768748726998,1.84117918,141.89,141.83,16.01651979]
[1768748727199,5.34925157,141.88,141.83,16.01651979]
[1768748727398,1.84117918,141.89,141.83,16.01651979]
[1768748727399,5.34925157,141.87,141.83,16.01651979]
[1768748727603,1.84117918,141.89,141.83,16.01651979]
[1768748727797,5.34929141,141.88,141.83,16.01651979]
[1768748727998,5.34929141,141.87,141.83,16.01651979]
[1768748728197,1.84117918,141.89,141.83,16.01651979]
[1768748728398,5.34929141,141.88,141.83,16.01651979]
[1768748728599,5.34929141,141.87,141.83,16.01651979]
[1768748728800,1.84117918,141.89,141.83,16.01651979]
[1768748729100,5.34956232,141.88,141.83,16.01651979]
[1768748729301,5.34956232,141.87,141.83,16.01651979]
[1768748729504,1.84117918,141.89,141.83,16.01651979]
[1768748729698,5.34962331,141.88,141.83,16.01651979]
[1768748729894,5.34962331,141.87,141.83,16.01651979]
[1768748730203,7.20583292,141.91,141.85,9.57281699]
[1768748734507,7.20583292,141.91,141.85,7.79102572]
[1768748735710,7.20583292,141.91,141.84,8.12959127]
[1768748737202,7.20583292,141.91,141.86,0.04826204]
[1768748737604,0.04714343,141.89,141.86,0.04826204]
[1768748749014,7.96615148,141.89,141.81,8.00205522]
[1768748749216,7.96615148,141.89,141.81,9.78384649]
[1768748749422,7.91900805,141.89,141.81,9.78384649]
[1768748749615,7.91900805,141.89,141.81,8.00205522]
[1768748749818,7.91900805,141.89,141.81,9.78384649]
[1768748750424,0.05245956,141.86,141.81,9.78384649]
[1768748757222,0.05245956,141.86,141.81,8.00205522]
[1768748757524,1.78179127,141.84,141.78,8.28100413]
[1768748758424,0.04661476,141.82,141.78,8.28100413]
[1768748767731,0.04661476,141.82,141.76,8.28100413]
[1768748768933,6.39561476,141.82,141.76,8.28100413]
[1768748771234,6.3494,141.81,141.76,8.28100413]
[1768748776337,6.3494,141.81,141.77,1.78179127]
[1768748776833,6.3494,141.81,141.76,8.28100413]
[1768748777137,6.3494,141.81,141.76,10.0627954]
[1768748778736,6.3494,141.81,141.77,0.05395192]
[1768748783745,14.63293644,141.81,141.77,0.05395192]
[1768748789644,9.14269764,141.79,141.74,8.68060066]
[1768748789836,10.92648102,141.79,141.72,8.68060066]
[1768748790847,0.05315725,141.77,141.72,8.68060066]
[1768748791052,0.05315725,141.77,141.72,10.46438404]
[1768748791551,0.05315725,141.77,141.72,8.68060066]
[1768748791752,0.05315725,141.77,141.73,0.04719342]
[1768748793952,6.40445725,141.77,141.73,0.04719342]
[1768748794855,15.54715489,141.77,141.73,0.04719342]
[1768748795058,6.3521,141.75,141.67,6.3553]
[1768748795351,6.3521,141.75,141.69,1.78378338]
[1768748795955,15.49479764,141.75,141.67,6.3553]
[1768748796261,15.49479764,141.75,141.7,1.78378338]
[1768748796558,0.05421197,141.72,141.7,1.78378338]
[1768748796754,6.3528,141.74,141.64,256.48]
[1768748797057,9.14269764,141.75,141.69,1.78378338]
[1768748798259,0.04997792,141.73,141.69,1.78378338]
[1768748799060,0.04997792,141.73,141.68,9.07021654]
[1768748799260,0.04997792,141.73,141.68,10.85399992]
[1768748800957,0.04997792,141.73,141.68,9.07021654]
[1768748801159,0.04997792,141.73,141.68,10.85399992]
[1768748803264,0.04997792,141.73,141.68,9.07021654]
[1768748803563,0.04997792,141.73,141.68,10.85399992]
[1768748808967,0.04997792,141.73,141.68,9.07021654]
[1768748811167,0.04997792,141.73,141.7,9.07021654]
[1768748811372,8.89503628,141.77,141.7,9.07021654]
[1768748812671,0.05170304,141.75,141.7,9.07021654]
[1768748813270,0.05170304,141.75,141.7,10.85399992]